bitfinex/quotes_BTCUSD_20260315
["timestamp","ask_amount","ask_price","bid_price","bid_amount"]
[1773551780451,0.07007978,71594.0,71579.0,0.0486776]
[1773551780683,0.07007978,71594.0,71580.0,0.0014]
[1773551780879,0.07007978,71594.0,71578.0,0.00035749]
[1773551781130,0.05862238,71590.0,71579.0,0.0014]
[1773551781864,0.07007978,71594.0,71578.0,0.02233471]
[1773551782062,0.07007978,71594.0,71579.0,0.0014]
[1773551782473,0.06634647,71594.0,71579.0,0.0014]
[1773551782902,0.06634647,71594.0,71580.0,0.06985191]
[1773551783710,0.06634647,71594.0,71581.0,0.05403228]
[1773551784231,0.0001816,71594.0,71581.0,0.05403228]
[1773551784961,2.32e-06,71594.0,71581.0,0.05403228]
[1773551785842,2.32e-06,71594.0,71582.0,0.06984996]
[1773551787398,0.07001044,71596.0,71582.0,0.06984996]
[1773551787747,0.00022001,71594.0,71583.0,0.05569037]
[1773551787944,4.068e-05,71594.0,71584.0,0.0014]
[1773551790590,4.068e-05,71594.0,71585.0,0.06984703]
[1773551790746,4.068e-05,71594.0,71584.0,0.07124789]
[1773551792719,4.068e-05,71594.0,71585.0,0.055554]
[1773551795004,4.068e-05,71594.0,71586.0,0.05551178]
[1773551795207,0.00017219,71596.0,71586.0,0.05551178]
[1773551795208,1e-08,71596.0,71586.0,0.05551178]
[1773551795409,1e-08,71599.0,71586.0,0.05551178]
[1773551795795,1e-08,71599.0,71587.0,0.06984508]
[1773551795999,1e-08,71599.0,71588.0,0.05051178]
[1773551797513,0.00022002,71599.0,71588.0,0.05051178]
[1773551798089,0.00022002,71599.0,71590.0,0.05047013]
[1773551798303,0.00022002,71599.0,71592.0,0.05047013]
[1773551798502,0.00022002,71599.0,71592.0,0.05035013]
[1773551799709,0.06989061,71602.0,71592.0,0.05035013]
[1773551799934,0.06982899,71604.0,71593.0,0.06983923]
[1773551800138,0.06982899,71604.0,71594.0,0.03813539]
[1773551800139,0.06258256,71604.0,71594.0,0.03813539]
[1773551801259,0.06258256,71604.0,71594.0,0.10797336]
[1773551802526,0.06982752,71605.0,71592.0,0.06983936]
[1773551802527,0.01402295,71605.0,71593.0,0.03928138]
[1773551802927,0.0002551,71606.0,71593.0,0.03928138]
[1773551803144,0.07008165,71606.0,71593.0,0.03928138]
[1773551803558,0.07008171,71606.0,71593.0,0.03928138]
[1773551803928,0.06298171,71606.0,71593.0,0.03928138]
[1773551804143,0.06339293,71608.0,71593.0,0.03928138]
[1773551804517,0.0698246,71610.0,71594.0,0.06983825]
[1773551804758,0.0698246,71610.0,71595.0,0.04335284]
[1773551804973,0.06982167,71611.0,71595.0,0.04335284]
[1773551806295,0.04102167,71611.0,71595.0,0.04335284]
[1773551806464,0.06272167,71611.0,71596.0,0.0698363]
[1773551806640,0.03422167,71611.0,71597.0,0.04491953]
[1773551806840,0.78962215,71613.0,71597.0,0.04351953]
[1773551807039,0.78962215,71613.0,71601.0,0.03481562]
[1773551807796,0.78952215,71613.0,71601.0,0.03481562]
[1773551807960,0.78952215,71613.0,71596.0,0.0698363]
[1773551807961,0.05852285,71611.0,71596.0,0.0698363]
[1773551808162,0.01296044,71610.0,71596.0,0.0698363]
[1773551808364,0.05888005,71611.0,71597.0,0.0014]
[1773551808612,0.0003572,71611.0,71597.0,0.0014]
[1773551808796,0.06982265,71610.0,71598.0,0.0014]
[1773551810772,0.04852265,71610.0,71600.0,0.04129584]
[1773551810971,0.06982265,71610.0,71600.0,0.04129584]
[1773551811180,0.04842265,71610.0,71600.0,0.04129584]
[1773551811393,0.04802265,71610.0,71600.0,0.04129584]
[1773551811590,0.06982211,71611.0,71600.0,0.04129584]
[1773551811835,0.06992921,71611.0,71600.0,0.04129584]
[1773551812044,0.78952215,71613.0,71600.0,0.04129584]
[1773551812247,0.06701926,71622.0,71601.0,0.04104633]
[1773551812459,0.02590681,71642.0,71630.0,0.00728883]
[1773551812658,0.10412823,71643.0,71622.0,0.01180822]
[1773551812814,0.10412823,71643.0,71630.0,0.06980296]
[1773551813017,0.04162491,71642.0,71630.0,0.06980296]
[1773551813239,0.04162491,71642.0,71631.0,0.0014]
[1773551813661,0.04162491,71640.0,71603.0,0.01456179]
[1773551813894,0.04162491,71629.0,71604.0,0.0014]
[1773551814078,0.04162491,71629.0,71604.0,0.03918578]
[1773551814365,0.04162491,71629.0,71604.0,0.03936368]
[1773551814603,0.04162491,71641.0,71619.0,0.05852285]
[1773551814780,0.06979341,71640.0,71621.0,0.06981192]
[1773551815016,0.04162491,71639.0,71621.0,0.06981192]
[1773551816217,0.02253887,71639.0,71621.0,0.06981192]
[1773551816771,0.06979536,71638.0,71621.0,0.11085825]
[1773551817177,0.06979536,71638.0,71621.0,0.06981192]
[1773551817576,0.04162491,71637.0,71621.0,0.06981192]
[1773551819085,0.09453432,71638.0,71621.0,0.06981192]
[1773551819086,0.06979828,71635.0,71621.0,0.06981192]
[1773551819822,0.04162491,71634.0,71621.0,0.06981192]
[1773551821204,0.06980023,71633.0,71621.0,0.06981192]
[1773551821401,0.04162491,71632.0,71621.0,0.06981192]
[1773551821608,0.00728781,71631.0,71621.0,0.06981192]
[1773551821807,0.04162491,71630.0,71621.0,0.06981192]
[1773551822205,0.04162491,71630.0,71615.0,0.06999529]
[1773551822397,0.04162491,71630.0,71616.0,0.0014]
[1773551822591,0.04162491,71630.0,71617.0,0.0014]
[1773551823440,0.04162491,71630.0,71615.0,0.06999529]
[1773551823441,0.04162491,71628.0,71615.0,0.0014]
[1773551823968,0.04162491,71628.0,71616.0,0.0014]
[1773551824182,0.0384,71663.0,71609.0,0.04104633]
[1773551824400,0.04642878,71662.0,71640.0,0.05852285]
[1773551824708,0.04642878,71662.0,71641.0,0.12318681]
[1773551825079,0.07168442,71667.0,71645.0,0.00609463]
[1773551825080,0.00051633,71667.0,71645.0,0.00609463]
[1773551825394,0.00051633,71667.0,71650.0,0.06461748]
[1773551825595,0.01124,71669.0,71651.0,0.0014]
[1773551825771,0.05315648,71669.0,71651.0,0.00150706]
[1773551825971,0.08100558,71669.0,71651.0,0.00150706]
[1773551826175,0.01124,71669.0,71651.0,0.00010706]
[1773551826384,0.01124,71669.0,71652.0,0.0014]
[1773551826706,0.04331648,71668.0,71653.0,0.0014]
[1773551826905,0.04331648,71668.0,71651.0,0.00010706]
[1773551827071,0.04331648,71668.0,71647.0,0.06978659]
[1773551827268,0.04342348,71668.0,71649.0,0.0014]
[1773551827466,0.04162491,71666.0,71648.0,0.06978488]
[1773551827711,0.04162491,71664.0,71648.0,0.06978488]
[1773551828003,0.0014,71663.0,71648.0,0.06978488]
[1773551828204,0.04162491,71663.0,71648.0,0.06978488]
[1773551828370,0.0014,71662.0,71648.0,0.06978488]
[1773551828578,0.0014,71663.0,71649.0,0.0014]
[1773551828772,0.0014,71662.0,71649.0,0.0014]
[1773551828973,0.10574439,71669.0,71649.0,0.0014]
[1773551828974,0.01124,71669.0,71650.0,0.04104633]
[1773551829197,0.01124,71669.0,71650.0,0.04115333]
[1773551829378,0.01124,71669.0,71651.0,0.06978269]
[1773551829573,0.01124,71669.0,71652.0,0.04104633]
[1773551829794,0.04162491,71668.0,71651.0,0.06978269]
[1773551830202,0.01124,71669.0,71651.0,0.06978269]
[1773551830404,0.01124,71669.0,71652.0,0.04104633]
[1773551830607,0.04162491,71668.0,71651.0,0.06978269]
[1773551830770,0.08100539,71669.0,71652.0,0.04104633]
[1773551831631,0.08100539,71669.0,71653.0,0.06978074]
[1773551832131,0.01124,71669.0,71653.0,0.06978074]
[1773551832518,0.04162491,71668.0,71653.0,0.06978074]
[1773551833400,0.0014,71667.0,71653.0,0.06978074]
[1773551833632,0.08100545,71669.0,71653.0,0.06978074]
[1773551833934,0.0014,71668.0,71654.0,0.04104633]
[1773551834133,0.0014,71668.0,71655.0,0.04244633]
[1773551834540,0.01264,71669.0,71655.0,0.04244633]
[1773551834762,0.00022001,71668.0,71655.0,0.04244633]
[1773551835142,0.00721727,71669.0,71655.0,0.04244633]
[1773551835693,0.00721727,71669.0,71656.0,0.06977782]
[1773551838216,0.00721727,71669.0,71657.0,0.0014]
[1773551838455,0.00681727,71669.0,71657.0,0.0014]
[1773551838660,0.00641727,71669.0,71657.0,0.04244633]
[1773551838836,0.00641727,71669.0,71657.0,0.0014]
[1773551840035,0.00641727,71669.0,71658.0,0.06977587]
[1773551840653,0.0014,71674.0,71658.0,0.06977587]
[1773551841175,0.0014,71674.0,71658.0,0.1108222]
[1773551841375,0.0014,71674.0,71658.0,0.06977587]
[1773551841575,0.04302491,71674.0,71658.0,0.06977587]
[1773551842692,0.04302491,71674.0,71657.0,0.07117587]
[1773551842693,0.05129309,71673.0,71657.0,0.07117587]
[1773551842855,0.05129309,71673.0,71658.0,0.02358009]
[1773551843055,0.05129309,71673.0,71657.0,0.06977587]
[1773551843255,0.05129309,71673.0,71658.0,0.06977587]
[1773551843462,0.05129309,71673.0,71650.0,0.06988973]
[1773551843463,0.05129309,71673.0,71653.0,0.06978009]
[1773551844496,0.06976225,71672.0,71650.0,0.06988774]
[1773551844650,0.05129309,71671.0,71650.0,0.06988774]
[1773551844851,0.05129309,71671.0,71651.0,0.0506013]
[1773551845455,0.05129309,71671.0,71650.0,0.000107]
[1773551846608,0.06976419,71670.0,71650.0,0.000107]
[1773551846804,0.12245728,71670.0,71650.0,0.0507083]
[1773551847014,0.0014,71669.0,71650.0,0.0507083]
[1773551847512,0.12105728,71670.0,71650.0,0.0507083]
[1773551847691,0.0014,71668.0,71650.0,0.0507083]
[1773551848912,0.05129309,71666.0,71651.0,0.06978269]
[1773551849470,0.0014,71665.0,71651.0,0.06978269]
[1773551850012,0.05269309,71665.0,71651.0,0.06978269]
[1773551850220,0.05840129,71661.0,71639.0,0.0014]
[1773551850392,0.05129309,71660.0,71639.0,0.0014]
[1773551850576,0.0014,71665.0,71640.0,0.10900259]
[1773551850783,0.07127629,71665.0,71642.0,0.0506013]
[1773551851103,0.0014,71664.0,71651.0,0.0002]
[1773551851704,0.000107,71665.0,71652.0,0.0506013]
[1773551852802,0.000107,71665.0,71653.0,0.06978074]
[1773551852986,0.000107,71665.0,71654.0,0.0520013]
[1773551854304,0.0014,71674.0,71654.0,0.0520013]
[1773551854498,0.0014,71674.0,71654.0,0.0521083]
[1773551855027,0.0714771,71677.0,71656.0,0.0506013]
[1773551855754,0.0714771,71677.0,71660.0,0.05838831]
[1773551856055,0.0714771,71677.0,71661.0,0.0520013]
[1773551857052,0.0714771,71677.0,71662.0,0.06977198]
[1773551857351,0.0700771,71677.0,71662.0,0.06977198]
[1773551857554,0.0714771,71677.0,71662.0,0.06977198]
[1773551858057,0.00022001,71682.0,71668.0,0.0506013]
[1773551858403,0.06997282,71682.0,71668.0,0.0506013]
[1773551858616,0.06997282,71682.0,71669.0,0.0014]
[1773551858806,0.04146776,71681.0,71669.0,0.0014]
[1773551859007,0.11122417,71678.0,71664.0,0.0014]
[1773551859635,0.0014,71677.0,71663.0,0.0014]
[1773551861430,0.0014,71676.0,71664.0,0.06977003]
[1773551861639,0.0009643,71676.0,71665.0,0.0506013]
[1773551861863,0.0003445,71676.0,71665.0,0.0506013]
[1773551862064,0.00029836,71676.0,71665.0,0.0506013]
[1773551862701,0.00029836,71676.0,71664.0,0.06977003]
[1773551863602,0.06975933,71675.0,71664.0,0.06977003]
[1773551864157,0.00022001,71682.0,71665.0,0.0506013]
[1773551864367,0.0261728,71693.0,71664.0,0.06977003]
[1773551864368,0.02447399,71709.0,71673.0,0.0506013]
[1773551864567,0.0003188,71712.0,71691.0,0.0506013]
[1773551864769,0.04531269,71711.0,71692.0,0.0014]
[1773551865001,0.04531269,71709.0,71679.0,0.0506013]
[1773551865219,0.13915845,71711.0,71669.0,0.20798721]
[1773551865367,0.07004247,71712.0,71691.0,0.0506013]
[1773551865571,0.04581766,71709.0,71692.0,0.07114203]
[1773551865775,0.04617466,71709.0,71692.0,0.06974203]
[1773551866243,0.0014,71708.0,71692.0,0.06974203]
[1773551866423,0.0014,71708.0,71693.0,0.0506013]
[1773551866719,0.0014,71708.0,71691.0,0.07114293]
[1773551866720,0.04613496,71708.0,71691.0,0.0014]
[1773551867318,0.000357,71709.0,71691.0,0.07114295]
[1773551867319,0.0014,71707.0,71691.0,0.07114295]
[1773551867521,0.000357,71709.0,71692.0,0.0506013]
[1773551867822,0.06972819,71707.0,71694.0,0.0506013]
[1773551868123,0.00034866,71702.0,71694.0,0.0506013]
[1773551868513,0.00034866,71702.0,71691.0,0.0014]
[1773551868711,0.00034866,71702.0,71689.0,0.06974524]
[1773551868914,0.00174866,71702.0,71689.0,0.06974524]
[1773551869707,0.11679338,71701.0,71683.0,0.0014]
[1773551869913,0.11679338,71701.0,71684.0,0.0506013]
[1773551870111,0.06973403,71701.0,71684.0,0.0506013]
[1773551871036,0.07113403,71701.0,71684.0,0.0506013]
[1773551871455,0.04776256,71700.0,71677.0,0.06077341]
[1773551871654,0.04776256,71700.0,71679.0,0.05819221]
[1773551871861,0.0003363,71735.0,71680.0,0.07115446]
[1773551872066,0.07004524,71726.0,71701.0,0.05819221]
[1773551872221,0.0534113,71727.0,71703.0,0.05819221]
[1773551872423,0.04844751,71726.0,71705.0,0.05819221]
[1773551872861,0.04844751,71726.0,71703.0,0.00010705]
[1773551873154,0.04844751,71726.0,71704.0,0.05959221]
[1773551873335,0.04844751,71726.0,71705.0,0.0014]
[1773551873713,0.05037789,71724.0,71706.0,0.06972917]
[1773551873908,0.0014,71723.0,71707.0,0.05819221]
[1773551874156,0.05037789,71722.0,71706.0,0.06972917]
[1773551875186,0.05204737,71723.0,71706.0,0.06972917]
[1773551875399,0.05204737,71723.0,71704.0,0.12792138]
[1773551875400,0.05204737,71723.0,71704.0,0.06972917]
[1773551875591,0.05204737,71723.0,71704.0,0.07108917]
[1773551875799,0.05091278,71721.0,71704.0,0.07108917]
[1773551876113,0.00022001,71708.0,71704.0,0.07108917]
[1773551876612,0.00022001,71708.0,71704.0,0.06972917]
[1773551876757,0.00022001,71708.0,71697.0,0.0711375]
[1773551876956,0.00032688,71708.0,71697.0,0.0697375]
[1773551877365,0.05117416,71747.0,71712.0,0.03335526]
[1773551877565,0.02483805,71749.0,71721.0,0.06425241]
[1773551877806,0.02483806,71761.0,71724.0,0.06425241]
[1773551878110,0.00145,71760.0,71732.0,0.06425241]
[1773551878414,0.00145,71760.0,71731.0,0.03335526]
[1773551878415,0.06967378,71763.0,71734.0,0.06352741]
[1773551878707,0.00481991,71762.0,71734.0,0.06352741]
[1773551878859,0.00481991,71762.0,71735.0,0.0014]
[1773551879064,0.03205046,71759.0,71735.0,0.0014]
[1773551879263,0.00481991,71758.0,71728.0,0.0014]
[1773551879463,0.0014,71757.0,71729.0,0.06352741]
[1773551879706,0.00654785,71757.0,71729.0,0.06352741]
[1773551879889,0.06968058,71756.0,71730.0,0.06970584]
[1773551880064,0.00514785,71755.0,71730.0,0.06970584]
[1773551880287,0.00514785,71755.0,71730.0,0.13323325]
[1773551880709,0.00514785,71755.0,71732.0,0.001]
[1773551880911,0.00514785,71755.0,71730.0,0.13323325]
[1773551881137,0.00514785,71755.0,71731.0,0.06352741]
[1773551881345,0.06967378,71763.0,71733.0,0.06352741]
[1773551881505,0.0696554,71782.0,71732.0,1.05511026]
[1773551881506,0.02466754,71812.0,71741.0,0.09587557]
[1773551881694,0.06964273,71797.0,71754.0,0.05819221]
[1773551881897,0.06964273,71795.0,71760.0,0.05819221]
[1773551882117,0.03218718,71794.0,71756.0,0.06968058]
[1773551882314,0.06964273,71795.0,71754.0,0.06968058]
[1773551882315,0.0014,71793.0,71757.0,0.0014]
[1773551882542,0.03358718,71792.0,71758.0,0.0014]
[1773551882902,0.03304716,71788.0,71757.0,0.0014]
[1773551883096,0.03304716,71788.0,71760.0,0.001]
[1773551883345,0.03167911,71789.0,71761.0,0.05819221]
[1773551883493,0.0014,71787.0,71761.0,0.05819221]
[1773551884296,0.00022001,71768.0,71762.0,0.06967475]
[1773551884536,0.00022001,71768.0,71757.0,0.0014]
[1773551884537,0.00022001,71768.0,71760.0,0.001]
[1773551884738,0.00022001,71768.0,71744.0,0.06969223]
[1773551885115,0.0014,71767.0,71744.0,0.06969223]
[1773551885651,0.00150693,71767.0,71744.0,0.06969223]
[1773551885852,0.00150693,71767.0,71742.0,0.06969223]
[1773551886004,0.03387141,71766.0,71742.0,0.06969223]
[1773551886411,0.10354325,71765.0,71738.0,0.06969771]
[1773551886644,0.0014,71764.0,71738.0,0.06969771]
[1773551886844,0.03527072,71764.0,71738.0,0.06969771]
[1773551887452,0.06967184,71765.0,71738.0,0.06969771]
[1773551887627,0.0014,71766.0,71739.0,0.05959221]
[1773551888247,0.0014,71766.0,71739.0,0.05819221]
[1773551888453,0.06967184,71765.0,71740.0,0.06969612]
[1773551888649,0.06967184,71765.0,71740.0,0.12788833]
[1773551889890,0.06967184,71765.0,71740.0,0.06969612]
[1773551890267,0.0014,71764.0,71740.0,0.06969612]
[1773551890445,0.06967378,71763.0,71740.0,0.06969612]
[1773551890939,0.06967378,71763.0,71747.0,0.06]
[1773551891861,0.06967378,71763.0,71740.0,0.06969612]
[1773551891862,0.06967378,71763.0,71740.0,0.06961612]
[1773551892063,0.03220051,71762.0,71740.0,0.06961612]
[1773551892430,0.03220051,71759.0,71740.0,0.0002]
[1773551892701,0.03187314,71757.0,71739.0,0.06969612]
[1773551893349,0.03205046,71758.0,71739.0,0.06969612]
[1773551894103,0.06965552,71782.0,71739.0,0.06969612]
[1773551894104,0.06965053,71787.0,71741.0,0.05819221]
[1773551894240,0.0014,71786.0,71743.0,0.05819221]
[1773551894434,0.0014,71786.0,71744.0,0.06969223]
[1773551894435,0.06965243,71785.0,71744.0,0.06969223]
[1773551894658,0.06965243,71785.0,71745.0,0.05959221]
[1773551894882,0.10139362,71785.0,71745.0,0.05959221]
[1773551895191,0.03174119,71784.0,71745.0,0.05959221]
[1773551895532,0.0014,71783.0,71745.0,0.05959221]
[1773551895742,0.07000689,71787.0,71751.0,0.05819221]
[1773551895743,0.00035636,71787.0,71751.0,0.05819221]
[1773551896035,0.00035636,71787.0,71750.0,0.32502252]
[1773551896036,0.0014,71786.0,71750.0,0.32502252]
[1773551896242,0.0014,71786.0,71751.0,0.05819221]
[1773551896591,0.06965243,71785.0,71756.0,0.05819221]
[1773551896792,0.06965243,71785.0,71758.0,0.05819221]
[1773551896991,0.0710523,71786.0,71758.0,0.05819221]
[1773551897492,0.0710523,71786.0,71759.0,0.0014]
[1773551897647,0.0710523,71786.0,71758.0,0.0014]
[1773551897847,0.00035636,71787.0,71759.0,0.05819221]
[1773551898046,0.07140736,71787.0,71759.0,0.05819221]
[1773551898489,0.07140736,71787.0,71761.0,0.05819221]
[1773551898694,0.07140736,71787.0,71763.0,0.05819221]
[1773551899102,0.07000736,71787.0,71763.0,0.05819221]
[1773551899346,0.0014,71786.0,71763.0,0.05819221]
[1773551899486,0.07000736,71787.0,71763.0,0.05819221]
[1773551899702,0.0014,71786.0,71763.0,0.05819221]
[1773551900307,0.0014,71786.0,71751.0,0.10931008]
[1773551900513,0.06965922,71778.0,71744.0,0.06969223]
[1773551900741,0.0298833,71777.0,71744.0,0.06969223]
[1773551900912,0.0298833,71775.0,71744.0,0.06969223]
[1773551902083,0.02939135,71769.0,71737.0,0.0145366]
[1773551902217,0.02939135,71759.0,71737.0,0.08423513]
[1773551902403,0.0014,71758.0,71737.0,0.08423513]
[1773551902608,0.06967961,71757.0,71737.0,0.08423513]
[1773551902859,0.0290908,71756.0,71734.0,0.06960128]
[1773551903013,0.0290908,71756.0,71733.0,0.06970254]
[1773551903355,0.0290908,71756.0,71733.0,0.00010693]
[1773551904837,0.02915567,71754.0,71733.0,0.00010693]
[1773551905469,0.06968155,71755.0,71733.0,0.05914098]
[1773551905674,0.0014,71754.0,71733.0,0.05914098]
[1773551906469,0.0024,71754.0,71733.0,0.05914098]
[1773551906878,0.07108349,71753.0,71734.0,0.06970195]
[1773551907481,0.06968349,71753.0,71734.0,0.06970195]
[1773551907684,0.0014,71752.0,71734.0,0.06970195]
[1773551907894,0.0014,71752.0,71727.0,0.06970868]
[1773551907895,0.0014,71752.0,71720.0,0.10965857]
[1773551908119,0.06968349,71753.0,71704.0,0.03918571]
[1773551908120,0.17502252,71740.0,71704.0,0.03918571]
[1773551908316,0.0014,71739.0,71705.0,0.0608583]
[1773551908515,0.0014,71738.0,71705.0,0.0608583]
[1773551908760,0.17512935,71740.0,71706.0,0.0014]
[1773551908967,0.0014,71737.0,71708.0,0.06972722]
[1773551909220,0.0010516,71737.0,71709.0,0.0608583]
[1773551909581,0.06969709,71739.0,71709.0,0.0608583]
[1773551909582,0.0014,71736.0,71709.0,0.0608583]
[1773551911018,0.06970098,71735.0,71710.0,0.06972528]
[1773551912167,0.01121521,71734.0,71709.0,0.0002]
[1773551912359,0.01121521,71734.0,71709.0,0.07132566]
[1773551912715,0.01121521,71734.0,71709.0,0.0016]
[1773551912871,0.01121521,71734.0,71709.0,0.07132543]
[1773551913211,0.06970292,71733.0,71709.0,0.07132543]
[1773551913413,0.06970292,71733.0,71710.0,0.0608583]
[1773551913618,0.00010683,71740.0,71710.0,0.0608583]
[1773551913814,0.06969709,71739.0,71710.0,0.0608583]
[1773551914019,0.06980367,71740.0,71710.0,0.0608583]
[1773551914598,0.06980367,71740.0,71710.0,0.0618583]
[1773551914999,0.06980367,71740.0,71712.0,0.0608583]
[1773551915207,0.06969806,71738.0,71714.0,0.06972139]
[1773551915831,0.06969806,71738.0,71715.0,0.0014]
[1773551916007,0.01,71733.0,71716.0,0.0014]
[1773551916211,0.0014,71732.0,71714.0,0.06972139]
[1773551916596,0.0014,71732.0,71708.0,0.0014]
[1773551916597,0.01152234,71732.0,71708.0,0.0014]
[1773551916803,0.17491489,71730.0,71712.0,0.001]
[1773551917116,0.0014,71732.0,71712.0,0.001]
[1773551917320,0.06970486,71731.0,71709.0,0.0016]
[1773551917736,0.17491489,71719.0,71673.0,0.08505194]
[1773551918079,0.17491489,71710.0,71675.0,0.06500857]
[1773551918200,0.0014,71709.0,71675.0,0.06500857]
[1773551919210,0.06972722,71708.0,71676.0,0.06975835]
[1773551919448,0.06972722,71708.0,71677.0,0.06500857]
[1773551919845,0.17491489,71700.0,71677.0,0.06500857]
[1773551920234,0.0014,71699.0,71677.0,0.06500857]
[1773551920657,0.0014,71699.0,71677.0,0.06490857]
[1773551921633,0.06973695,71698.0,71676.0,0.06975835]
[1773551921841,0.06973695,71698.0,71677.0,0.06495857]
[1773551922076,0.00335076,71716.0,71676.0,0.06975835]
[1773551922077,0.0014,71703.0,71679.0,0.06495857]
[1773551922273,0.0014,71702.0,71679.0,0.06495857]
[1773551922450,0.06971886,71717.0,71679.0,0.06495857]
[1773551922859,0.0014,71716.0,71679.0,0.06495857]
[1773551923177,0.06971653,71719.0,71683.0,1.974873]
[1773551923430,0.0014,71718.0,71684.0,0.06565857]
[1773551923689,0.0014,71717.0,71684.0,0.06565857]
[1773551923868,0.06971944,71716.0,71686.0,0.06425857]
[1773551924073,0.0014,71715.0,71686.0,0.06425857]
[1773551924242,0.06971944,71716.0,71686.0,0.06425857]
[1773551924444,0.0014,71715.0,71686.0,0.06425857]
[1773551924885,0.0014,71714.0,71686.0,0.06425857]
[1773551926183,0.06972236,71713.0,71687.0,0.06974765]
[1773551926384,0.06972236,71713.0,71688.0,0.06425857]
[1773551926558,0.0014,71714.0,71688.0,0.06425857]
[1773551928486,0.0014,71714.0,71690.0,0.06425857]
[1773551928686,0.0014,71714.0,71692.0,0.12970718]
[1773551929073,0.06971809,71718.0,71692.0,0.12970718]
[1773551929826,0.06971809,71718.0,71696.0,0.12970718]
[1773551930075,0.06971809,71718.0,71698.0,0.12970718]
[1773551930536,0.06971677,71719.0,71699.0,0.06973597]
[1773551930782,0.06971677,71719.0,71702.0,0.12897492]
[1773551930980,0.06971677,71719.0,71704.0,0.12897492]
[1773551931598,0.06970875,71727.0,71704.0,0.12897492]
[1773551932003,0.00128,71726.0,71704.0,0.12897492]
[1773551932608,0.07098875,71727.0,71706.0,0.12897492]
[1773551933737,0.00128,71726.0,71706.0,0.12897492]
[1773551935264,0.0697107,71725.0,71708.0,0.12897492]
[1773551935480,0.0697107,71725.0,71710.0,0.12897492]
[1773551935697,0.00132,71724.0,71710.0,0.12897492]
[1773551937391,0.00132,71724.0,71712.0,0.12897492]
[1773551938004,0.00132,71726.0,71712.0,0.12897492]
[1773551939941,0.0697107,71725.0,71711.0,0.02030867]
[1773551940147,0.0697107,71725.0,71712.0,0.06448746]
[1773551940884,0.00090582,71724.0,71709.0,0.0002]
[1773551941860,0.00090582,71724.0,71709.0,0.06992615]
[1773551942077,0.06971264,71723.0,71709.0,0.0002]
[1773551942291,0.00226821,71722.0,71686.0,0.06994846]
[1773551942509,0.00226821,71719.0,71687.0,0.06448746]
[1773551942719,0.00226821,71719.0,71686.0,0.000557]
[1773551942939,0.17491489,71720.0,71686.0,0.000557]
[1773551943194,0.00136,71718.0,71686.0,0.000557]
[1773551943404,0.00136,71718.0,71686.0,0.07030548]
[1773551943814,0.17491489,71710.0,71678.0,0.0002]
[1773551944024,0.06972722,71708.0,71678.0,0.06995568]
[1773551944458,0.06972722,71708.0,71678.0,0.0002]
[1773551944661,0.20851677,71708.0,71678.0,0.0002]
[1773551946413,0.20851677,71708.0,71686.0,0.0002]
[1773551946993,0.20851677,71708.0,71678.0,0.0002]
[1773551948298,0.06973695,71698.0,71678.0,0.0002]
[1773551948503,0.0014,71697.0,71678.0,0.0002]
[1773551948745,0.0014,71697.0,71672.0,0.06981159]
[1773551948977,0.0014,71696.0,71674.0,0.07472668]
[1773551949361,0.0014,71696.0,71672.0,5e-05]
[1773551949593,0.0014,71696.0,71673.0,0.07472668]
[1773551949917,0.0014,71695.0,71673.0,0.07472668]
[1773551950222,0.06974084,71694.0,71673.0,0.07472668]
[1773551951675,0.06974084,71694.0,71675.0,0.07472668]
[1773551951841,0.0014,71693.0,71675.0,0.07472668]
[1773551952133,0.06974084,71694.0,71675.0,0.07472668]
[1773551952287,0.06974278,71692.0,71676.0,0.14448503]
[1773551952489,0.0014,71691.0,71677.0,0.07472668]
[1773551953768,0.0014,71691.0,71674.0,0.0697603]
[1773551954914,0.06974473,71690.0,71673.0,0.14448698]
[1773551955375,0.06974473,71690.0,71673.0,0.14468698]
[1773551956648,0.06974473,71690.0,71674.0,0.07472668]
[1773551956859,0.0014,71689.0,71674.0,0.07472668]
[1773551959191,0.06974668,71688.0,71675.0,0.14448601]
[1773551959648,0.06974668,71688.0,71676.0,0.07472668]
[1773551960060,0.06974668,71688.0,71675.0,0.06975933]
[1773551960266,0.07010273,71688.0,71675.0,0.06975933]
[1773551961025,0.07010273,71688.0,71675.0,0.14448601]
[1773551961693,0.07010273,71688.0,71675.0,0.06975933]
[1773551961902,0.07010273,71688.0,71676.0,0.07472668]
[1773551963283,0.01100768,71719.0,71676.0,0.07472668]
[1773551963461,0.06973695,71698.0,71676.0,0.07508273]
[1773551963659,0.0014,71697.0,71679.0,0.06975543]
[1773551963867,0.0014,71696.0,71680.0,0.05487102]
[1773551964261,0.06973813,71697.0,71680.0,0.05487102]
[1773551964455,0.0014,71696.0,71684.0,0.05487102]
[1773551965940,0.0014,71696.0,71686.0,0.05487102]
[1773551968144,0.0014,71696.0,71688.0,0.05487102]
[1773551968145,0.06973987,71695.0,71688.0,0.05487102]
[1773551968708,0.06973987,71695.0,71683.0,0.12974959]
[1773551969514,0.06973987,71695.0,71683.0,0.18462061]
[1773551969739,0.0014,71694.0,71683.0,0.12974959]
[1773551970071,0.06973987,71697.0,71683.0,0.18462061]
[1773551970391,0.0014,71696.0,71683.0,0.18462061]
[1773551970697,0.0014,71696.0,71683.0,0.12974959]
[1773551971053,0.0014,71696.0,71683.0,0.18462061]
[1773551971488,0.00034857,71720.0,71684.0,0.05487102]
[1773551971644,0.00034857,71720.0,71691.0,0.05487102]
[1773551971833,0.06971376,71722.0,71694.0,1.727767]
[1773551972033,0.0014,71721.0,71695.0,0.05487102]
[1773551972232,0.0014,71720.0,71697.0,0.05487102]
[1773551972532,0.06971267,71723.0,71699.0,0.05487102]
[1773551972835,5e-05,71716.0,71703.0,0.05487102]
[1773551973159,5e-05,71716.0,71703.0,0.02091311]
[1773551973540,0.05719432,71715.0,71672.0,0.09345731]
[1773551973741,5e-05,71716.0,71682.0,1.205377]
[1773551973967,5e-05,71716.0,71680.0,0.17491489]
[1773551973968,0.0014,71715.0,71691.0,0.05487102]
[1773551974167,0.06972139,71714.0,71694.0,0.06974084]
[1773551974329,0.06972139,71714.0,71695.0,0.05487102]
[1773551974779,0.00022001,71702.0,71695.0,0.05487102]
[1773551974981,0.00063581,71702.0,71695.0,0.05487102]
[1773551975183,0.00063581,71702.0,71696.0,0.0014]
[1773551975386,0.00063581,71702.0,71696.0,0.00010687]
[1773551976715,0.06973403,71701.0,71690.0,0.0014]
[1773551976947,0.06973403,71701.0,71673.0,0.06995933]
[1773551976948,0.05719432,71700.0,71673.0,0.0699603]
[1773551977082,0.05719432,71700.0,71673.0,0.06996057]
[1773551977293,0.05719432,71700.0,71674.0,0.05627102]
[1773551977881,0.05761012,71700.0,71674.0,0.05627102]
[1773551978082,0.05719432,71699.0,71674.0,0.05627102]
[1773551978276,0.0014,71698.0,71673.0,0.06996057]
[1773551978484,0.05719432,71697.0,71674.0,0.0014]